[Event "Tournoi de MI de l'Echiquier du Pays de Bray"]
[Site "Gournay-en-Bray, France"]
[Date "2023.05.20"]
[Round "8.5"]
[White "MOUHAMAD, Joachim"]
[Black "ROSHKA, Yevgeniy"]
[Result "1/2-1/2"]
[TimeControl "1h30/40 + 30 (30s/c)"]
[WhiteTitle "FM"]
[BlackTitle "IM"]
[WhiteFideId "656410"]
[BlackFideId "14129558"]
[WhiteElo "2238"]
[BlackElo "2508"]

1. e4 {[%emt 01:01:41]} g6 {[%emt 00:01:43]} 2. d4 {[%emt 00:00:20]} Bg7 {[%emt
00:00:07]} 3. Nc3 {[%emt 00:00:26]} d6 {[%emt 00:00:06]} 4. Nf3 {[%clk
01:31:05]} {[%emt 00:00:35]} a6 {[%emt 00:00:06]} 5. Be3 {[%emt 00:01:27]} b5
{[%emt 00:00:06]} 6. Bd3 {[%emt 00:00:33]} Bb7 {[%emt 00:00:42]} 7. a4 {[%emt
00:00:11]} b4 {[%emt 00:00:06]} 8. Ne2 {[%emt 00:05:20]} Nd7 {[%emt 00:00:18]}
9. O-O {[%emt 00:00:46]} Ngf6 {[%emt 00:03:30]} 10. Ng3 {[%emt 00:00:08]} O-O
{[%emt 00:02:28]} 11. h3 {[%emt 00:01:54]} c5 {[%emt 00:00:41]} 12. c3 {[%emt
00:00:12]} c4 {[%emt 00:04:18]} 13. Bb1 {[%emt 00:00:54]} a5 {[%emt 00:01:58]}
14. Qd2 {[%emt 00:12:21]} b3 {[%emt 00:02:04]} 15. Bh6 {[%emt 00:01:36]} e5
{[%emt 00:00:29]} 16. Nh2 {[%emt 00:08:12]} Re8 {[%emt 01:04:07]} 17. Bxg7 Kxg7
18. Qg5 Kh8 19. Nf3 exd4 20. cxd4 Nxe4 21. Bxe4 Bxe4 22. Nxe4 Rxe4 23. Qd5 Rf4
24. Qxc4 Rb8 25. Rfe1 Kg7 26. Re3 Rb4 27. Qc6 Nf6 28. Rc1 {[%emt 00:06:13]} Rb6
{[%emt 00:03:27]} 29. Qc4 {[%emt 00:01:27]} Rb4 {[%emt 00:04:30]} 30. Qc6
{[%emt 00:01:20]} Rf5 {[%emt 00:00:02]} 31. g4 {[%emt 00:08:04]} Rf4 {[%emt
00:00:02]} 32. g5 {[%emt 00:07:10]} Nd7 {[%emt 00:00:23]} 33. h4 {[%emt
00:01:23]} h6 {[%emt 00:04:31]} 34. Qxd6 {[%emt 00:00:46]} hxg5 {[%emt
00:00:33]} 35. Rc7 {[%emt 00:01:08]} Qf6 {[%emt 00:00:31]} 36. Qxf6+ {[%emt
00:01:53]} Nxf6 {[%emt 00:00:01]} 37. Nxg5 {[%emt 00:00:54]} Nd5 {[%emt
00:01:21]} 38. Ne6+ {[%emt 00:00:12]} Kf6 {[%emt 00:00:37]} 39. Nxf4 {[%emt
00:00:16]} Nxc7 {[%emt 00:00:01]} 40. Rc3 {[%emt 00:01:19]} Rxd4 {[%emt
00:00:07]} 41. Ne2 {[%emt 00:09:52]} Rg4+ {[%emt 00:01:10]} 42. Ng3 {[%emt
00:02:02]} Ne6 {[%emt 00:00:41]} 43. Rxb3 {[%emt 00:07:02]} Rxh4 {[%emt
00:03:47]} 44. Rf3+ {[%emt 00:00:13]} Kg7 {[%emt 00:00:07]} 45. b3 {[%emt
00:00:32]} Rb4 {[%emt 00:00:12]} 46. Ne2 {[%emt 00:00:45]} f5 {[%emt 00:00:08]}
47. Rc3 {[%emt 00:00:46]} Re4 {[%emt 00:02:04]} 48. Kf1 {[%emt 00:01:35]} g5
{[%emt 00:00:09]} 49. Re3 {[%emt 00:00:40]} Rxe3 {[%emt 00:00:30]} 50. fxe3 Nc5
51. Nd4 {[%emt 00:00:43]} Kf6 {[%emt 00:00:03]} 52. Kg2 {[%emt 00:02:24]} Ke5
{[%emt 00:11:21]} 53. Nc6+ {[%emt 00:00:40]} Ke4 {[%emt 00:00:01]} 54. Nxa5
{[%emt 00:00:07]} Kxe3 {[%emt 00:00:05]} 55. Nc4+ {[%emt 00:01:50]} Ke2 {[%emt
00:00:11]} 56. a5 {[%emt 00:00:07]} f4 {[%emt 00:00:22]} 57. Ne5 {[%emt
00:02:20]} Na6 {[%emt 00:01:36]} 58. Ng4 {[%emt 00:00:59]} Nb4 {[%emt
00:00:20]} 59. Nh2 {[%emt 00:03:02]} Na6 {[%emt 00:03:07]} 60. Ng4 {[%emt
00:00:10]} 1/2-1/2

[ePGN "0.1;DGT LiveChess/2.2.5"]

[Event "Tournoi de MI de l'Echiquier du Pays de Bray"]
[Site "Gournay-en-Bray, France"]
[Date "????.??.??"]
[Round "9.1"]
[White "ROSHKA, Yevgeniy"]
[Black "TEREKHOV, Andrey"]
[Result "1-0"]
[TimeControl "1h30/40 + 30 (30s/c)"]
[WhiteTitle "IM"]
[BlackTitle "FM"]
[WhiteFideId "14129558"]
[BlackFideId "4121481"]
[WhiteElo "2508"]
[BlackElo "2314"]

1. e4 {[%clk 01:15:26]} {[%emt 00:15:21]} c5 {[%clk 01:30:50]} {[%emt
00:00:23]} 2. Nc3 {[%clk 01:15:52]} {[%emt 00:00:05]} e6 {[%clk 01:31:10]}
{[%emt 00:00:09]} 3. Nf3 {[%clk 01:16:05]} {[%emt 00:00:16]} Nc6 {[%clk
01:31:13]} {[%emt 00:00:28]} 4. Bb5 {[%clk 01:16:22]} {[%emt 00:00:13]} Nd4
{[%clk 01:31:37]} {[%emt 00:00:07]} 5. Bd3 {[%clk 01:16:48]} {[%emt 00:00:04]}
a6 {[%clk 01:30:40]} {[%emt 00:01:27]} 6. O-O {[%clk 01:14:57]} {[%emt
00:02:20]} Nc6 {[%clk 01:30:47]} {[%emt 00:00:24]} 7. Nd5 {[%clk 01:12:44]}
{[%emt 00:02:43]} d6 {[%clk 01:29:42]} {[%emt 00:01:35]} 8. Ne3 {[%clk
01:09:14]} {[%emt 00:04:00]} Nf6 {[%clk 01:28:34]} {[%emt 00:01:39]} 9. c3
{[%clk 01:09:32]} {[%emt 00:00:12]} d5 {[%clk 01:24:01]} {[%emt 00:05:03]} 10.
exd5 {[%clk 01:09:54]} {[%emt 00:00:08]} Nxd5 {[%clk 01:23:48]} {[%emt
00:00:43]} 11. Be4 {[%clk 01:09:17]} {[%emt 00:01:06]} Be7 {[%clk 01:21:39]}
{[%emt 00:02:38]} 12. d4 {[%clk 01:07:28]} {[%emt 00:02:19]} cxd4 {[%clk
01:09:04]} {[%emt 00:13:06]} 13. Nxd4 {[%clk 01:07:19]} {[%emt 00:00:39]} Nxd4
{[%clk 01:04:49]} {[%emt 00:04:45]} 14. Qxd4 {[%clk 01:07:29]} {[%emt
00:00:19]} Nf6 {[%clk 01:03:21]} {[%emt 00:01:58]} 15. Qxd8+ {[%clk 01:06:29]}
{[%emt 00:01:30]} Bxd8 {[%clk 01:00:24]} {[%emt 00:03:27]} 16. Bf3 {[%clk
01:06:56]} {[%emt 00:00:02]} Bc7 {[%clk 00:58:17]} {[%emt 00:02:37]} 17. Nc4
{[%clk 01:06:25]} {[%emt 00:01:01]} O-O {[%clk 00:44:37]} {[%emt 00:14:11]} 18.
Bg5 {[%clk 00:58:18]} {[%emt 00:08:37]} Nd5 {[%clk 00:28:32]} {[%emt 00:16:35]}
19. Rfd1 {[%clk 00:57:53]} {[%emt 00:00:54]} f6 {[%clk 00:28:08]} {[%emt
00:00:55]} 20. Bh4 {[%clk 00:57:25]} {[%emt 00:00:57]} Bd7 {[%clk 00:17:17]}
{[%emt 00:11:21]} 21. Ne3 {[%clk 00:56:33]} {[%emt 00:01:22]} Bc6 {[%clk
00:13:36]} {[%emt 00:04:11]} 22. Nxd5 {[%clk 00:56:52]} {[%emt 00:00:11]} Bxd5
{[%clk 00:13:56]} {[%emt 00:00:10]} 23. Bxd5 {[%clk 00:57:16]} {[%emt
00:00:06]} exd5 {[%clk 00:14:23]} {[%emt 00:00:03]} 24. Rxd5 {[%clk 00:57:36]}
{[%emt 00:00:09]} Rad8 {[%clk 00:14:26]} {[%emt 00:00:28]} 25. Rdd1 {[%clk
00:56:11]} {[%emt 00:01:55]} Rfe8 {[%clk 00:14:27]} {[%emt 00:00:29]} 26. Bg3
{[%clk 00:56:33]} {[%emt 00:00:08]} Bxg3 {[%clk 00:09:19]} {[%emt 00:05:37]} 27.
hxg3 {[%clk 00:56:56]} {[%emt 00:00:06]} h5 {[%clk 00:08:13]} {[%emt 00:01:37]}
28. Kf1 {[%clk 00:57:21]} {[%emt 00:00:05]} Kf7 {[%clk 00:07:59]} {[%emt
00:00:44]} 29. Rxd8 {[%clk 00:56:26]} {[%emt 00:01:26]} Rxd8 {[%clk 00:08:26]}
{[%emt 00:00:03]} 30. Ke2 {[%clk 00:56:50]} {[%emt 00:00:06]} Re8+ {[%clk
00:08:30]} {[%emt 00:00:26]} 31. Kd2 {[%clk 00:57:10]} {[%emt 00:00:09]} Rd8+
{[%clk 00:08:49]} {[%emt 00:00:11]} 32. Kc2 {[%clk 00:57:39]} {[%emt 00:00:01]}
Re8 {[%clk 00:09:13]} {[%emt 00:00:05]} 33. Rd1 {[%clk 00:58:05]} {[%emt
00:00:04]} Kg6 {[%clk 00:08:50]} {[%emt 00:00:54]} 34. c4 {[%clk 00:56:36]}
{[%emt 00:01:58]} Kf5 {[%clk 00:04:24]} {[%emt 00:04:56]} 35. Rd5+ {[%clk
00:56:10]} {[%emt 00:00:56]} Kg4 {[%clk 00:04:40]} {[%emt 00:00:15]} 36. Kd2
{[%clk 00:56:22]} {[%emt 00:00:17]} Re7 {[%clk 00:04:09]} {[%emt 00:01:01]} 37.
b4 {[%clk 00:55:23]} {[%emt 00:01:30]} g5 {[%clk 00:04:16]} {[%emt 00:00:22]}
38. Rd4+ {[%clk 00:55:11]} {[%emt 00:00:42]} Kf5 {[%clk 00:04:42]} {[%emt
00:00:05]} 39. c5 {[%clk 00:53:58]} {[%emt 00:01:43]} Rh7 {[%clk 00:03:29]}
{[%emt 00:01:43]} 40. a4 {[%clk 00:53:01]} {[%emt 00:01:26]} h4 {[%clk
00:03:34]} {[%emt 00:00:25]} 41. gxh4 {[%clk 00:51:51]} {[%emt 00:01:41]} gxh4
{[%clk 00:03:09]} {[%emt 00:00:54]} 42. Kc3 {[%clk 00:38:05]} {[%emt 00:14:16]}
Rg7 {[%clk 00:11:20]} {[%emt 00:22:49]} 43. Rxh4 {[%clk 01:09:26]} {[%emt
00:00:09]} Rxg2 {[%clk 00:11:48]} {[%emt 00:00:03]} 44. Rh7 {[%clk 01:09:26]}
{[%emt 00:00:30]} Rxf2 {[%clk 00:12:11]} {[%emt 00:00:07]} 45. Rxb7 {[%clk
01:09:48]} {[%emt 00:00:09]} Ke5 {[%clk 00:10:55]} {[%emt 00:01:47]} 46. Re7+
{[%clk 01:09:56]} {[%emt 00:00:21]} Kd5 {[%clk 00:11:08]} {[%emt 00:00:17]} 47.
Rd7+ {[%clk 01:10:20]} {[%emt 00:00:06]} Ke5 {[%clk 00:11:30]} {[%emt
00:00:08]} 48. c6 {[%clk 01:09:04]} {[%emt 00:01:46]} Rf1 {[%clk 00:10:49]}
{[%emt 00:01:11]} 49. Rd2 {[%clk 01:07:22]} {[%emt 00:02:12]} Rc1+ {[%clk
00:08:56]} {[%emt 00:02:23]} 50. Rc2 {[%clk 01:07:50]} {[%emt 00:00:02]} Rh1
{[%clk 00:09:22]} {[%emt 00:00:05]} 51. c7 {[%clk 01:08:10]} {[%emt 00:00:10]}
Rh8 {[%clk 00:09:41]} {[%emt 00:00:11]} 52. b5 {[%clk 01:08:31]} {[%emt
00:00:09]} 1-0

[Event "Tournoi de MI de l'Echiquier du Pays de Bray"]
[Site "Gournay-en-Bray, France"]
[Date "????.??.??"]
[Round "9.3"]
[White "LEFEBVRE, Hervé"]
[Black "DEFROMONT, Benjamin"]
[Result "0-1"]
[TimeControl "1h30/40 + 30 (30s/c)"]
[WhiteTitle "FM"]
[BlackTitle "FM"]
[WhiteFideId "607363"]
[BlackFideId "36068829"]
[WhiteElo "2161"]
[BlackElo "2347"]

1. d4 {[%clk 01:30:59]} {[%emt 15:04:52]} Nf6 {[%clk 01:30:21]} {[%emt
00:00:38]} 2. Nf3 {[%clk 01:31:23]} {[%emt 00:00:07]} c5 {[%clk 01:29:49]}
{[%emt 00:01:02]} 3. d5 {[%clk 01:31:22]} {[%emt 00:00:31]} d6 {[%clk
01:27:57]} {[%emt 00:02:22]} 4. Nc3 {[%clk 01:25:50]} {[%emt 00:06:02]} g6
{[%clk 01:28:14]} {[%emt 00:00:13]} 5. e4 {[%clk 01:26:09]} {[%emt 00:00:11]}
Bg7 {[%clk 01:28:36]} {[%emt 00:00:07]} 6. Bc4 {[%clk 01:24:01]} {[%emt
00:02:39]} O-O {[%clk 01:28:47]} {[%emt 00:00:19]} 7. O-O {[%clk 01:24:23]}
{[%emt 00:00:07]} Na6 {[%clk 01:28:32]} {[%emt 00:00:45]} 8. h3 {[%clk
01:24:03]} {[%emt 00:00:50]} Nc7 {[%clk 01:28:43]} {[%emt 00:00:20]} 9. Re1
{[%clk 01:21:08]} {[%emt 00:03:25]} Rb8 {[%clk 01:22:47]} {[%emt 00:06:26]} 10.
a4 {[%clk 01:19:36]} {[%emt 00:02:02]} a6 {[%clk 01:15:20]} {[%emt 00:07:57]}
11. a5 {[%clk 01:06:57]} {[%emt 00:13:11]} b5 {[%clk 01:15:42]} {[%emt
00:00:08]} 12. axb6 {[%clk 01:07:21]} {[%emt 00:00:06]} Rxb6 {[%clk 01:15:57]}
{[%emt 00:00:15]} 13. e5 {[%clk 01:07:37]} {[%emt 00:00:13]} dxe5 {[%clk
01:05:49]} {[%emt 00:10:38]} 14. Nxe5 {[%clk 01:07:29]} {[%emt 00:00:38]} Bb7
{[%clk 01:05:58]} {[%emt 00:00:21]} 15. Ra5 {[%clk 00:53:06]} {[%emt 00:14:54]}
Ncxd5 {[%clk 00:57:52]} {[%emt 00:08:36]} 16. Nxd5 {[%clk 00:35:12]} {[%emt
00:18:24]} Nxd5 {[%clk 00:57:41]} {[%emt 00:00:41]} 17. Rxc5 {[%clk 00:34:07]}
{[%emt 00:01:34]} Rd6 {[%clk 00:57:02]} {[%emt 00:01:08]} 18. Qf3 {[%clk
00:25:22]} {[%emt 00:09:15]} Qb6 {[%clk 00:50:14]} {[%emt 00:07:18]} 19. Bxd5
{[%clk 00:17:13]} {[%emt 00:08:39]} Qxc5 {[%clk 00:50:02]} {[%emt 00:00:42]} 20.
Bxf7+ {[%clk 00:17:36]} {[%emt 00:00:06]} Kh8 {[%clk 00:50:03]} {[%emt
00:00:29]} 21. Qxb7 {[%clk 00:18:00]} {[%emt 00:00:05]} Bxe5 {[%clk 00:48:26]}
{[%emt 00:02:09]} 22. Qxe7 {[%clk 00:18:23]} {[%emt 00:00:07]} Rd1 {[%clk
00:48:25]} {[%emt 00:00:31]} 0-1

[Event "Tournoi de MI de l'Echiquier du Pays de Bray"]
[Site "Gournay-en-Bray, France"]
[Date "????.??.??"]
[Round "9.4"]
[White "DECUIGNIERE, Tom"]
[Black "HÖGLAUER, Patrick"]
[Result "0-1"]
[TimeControl "1h30/40 + 30 (30s/c)"]
[WhiteTitle "FM"]
[BlackTitle "FM"]
[WhiteFideId "26093820"]
[BlackFideId "1270548"]
[WhiteElo "2396"]
[BlackElo "2280"]

1. d4 {[%clk 01:30:30]} d5 {[%clk 01:30:30]} 2. c4 {[%clk 01:30:30]} c6 {[%clk
01:30:30]} 3. Nf3 {[%clk 01:31:08]} {[%emt 00:01:57]} Nf6 {[%clk 01:29:12]} 4.
Nc3 {[%clk 01:31:08]} a6 {[%clk 01:29:12]} 5. Bf4 {[%clk 01:31:08]} dxc4 {[%clk
01:29:12]} 6. e4 {[%clk 01:31:08]} b5 {[%clk 01:29:12]} 7. Qc2 {[%clk
01:31:08]} e6 {[%clk 01:29:12]} 8. Be2 {[%clk 01:31:08]} Bb7 {[%clk 01:29:12]}
9. O-O {[%clk 01:31:08]} Be7 {[%clk 01:29:12]} 10. Rad1 {[%clk 01:31:08]} Nbd7
{[%clk 01:29:12]} 11. Rfe1 {[%clk 01:31:08]} O-O {[%clk 01:29:12]} 12. Bf1
{[%clk 01:31:08]} Re8 {[%clk 01:29:12]} 13. Bc1 {[%clk 01:31:08]} c5 {[%clk
01:29:12]} 14. d5 {[%clk 01:31:08]} e5 {[%clk 01:29:12]} 15. g3 {[%clk
01:31:08]} Bf8 {[%clk 01:29:12]} 16. Bg2 {[%clk 01:31:08]} Qa5 {[%clk
01:29:12]} 17. a3 {[%clk 01:31:08]} Nb6 {[%clk 01:29:12]} 18. Nh4 {[%clk
01:31:08]} b4 {[%clk 01:29:12]} 19. Nb1 {[%clk 01:31:08]} Qb5 {[%clk 01:29:12]}
20. Nf5 {[%clk 01:31:08]} a5 {[%clk 01:29:12]} 21. f4 {[%clk 01:31:08]} Nfd7
{[%clk 01:29:12]} 22. Ne3 {[%clk 01:31:08]} c3 {[%clk 01:29:12]} 23. Ng4 {[%clk
01:31:08]} c4 {[%clk 01:29:12]} 24. bxc3 {[%clk 01:31:08]} b3 {[%clk 01:29:12]}
25. Qd2 {[%clk 01:31:08]} Na4 {[%clk 01:29:12]} 26. Qe2 {[%clk 01:31:08]} Nac5
{[%clk 01:29:12]} 27. fxe5 {[%clk 01:31:08]} Nxe5 {[%clk 01:29:12]} 28. Nxe5
{[%clk 01:31:08]} Rxe5 {[%clk 01:29:12]} 29. Bf4 {[%clk 01:31:08]} Ree8 {[%clk
01:29:12]} 30. Qf3 {[%clk 01:31:08]} Nd3 {[%clk 01:29:12]} 31. Rf1 {[%clk
01:31:08]} Rad8 {[%clk 01:29:12]} 32. h4 {[%clk 01:31:08]} Kh8 {[%clk
01:29:12]} 33. Kh1 {[%clk 01:31:08]} f5 {[%clk 01:29:12]} 34. Bg5 {[%clk
01:31:08]} fxe4 {[%clk 01:29:12]} 35. Qf5 {[%clk 01:31:08]} Bc8 {[%clk
01:29:12]} 36. Qf7 {[%clk 01:31:08]} Ne5 {[%clk 01:29:12]} 37. Qc7 {[%clk
01:31:08]} Bd6 {[%clk 01:29:12]} 38. Qxd8 {[%clk 01:31:08]} Rxd8 {[%clk
01:29:12]} 39. Bxd8 {[%clk 01:31:08]} e3 {[%clk 01:29:12]} 40. Bc7 {[%clk
01:31:08]} e2 {[%clk 01:29:12]} 41. Bxd6 {[%clk 01:31:08]} exd1=Q {[%clk
01:29:12]} 42. Rxd1 {[%clk 01:31:08]} Ng4 {[%clk 01:29:12]} 43. Rf1 {[%clk
01:31:08]} Nf6 {[%clk 01:29:12]} 44. Be7 {[%clk 01:31:08]} Bb7 {[%clk
01:29:12]} 45. Bxf6 {[%clk 01:31:08]} gxf6 {[%clk 01:29:12]} 46. Rd1 {[%clk
01:31:08]} Qd7 {[%clk 01:29:12]} 47. Kh2 {[%clk 01:31:08]} Kg7 {[%clk
01:29:12]} 48. Nd2 {[%clk 01:31:08]} Qb5 {[%clk 01:29:12]} 49. Nb1 {[%clk
01:31:08]} Kf8 {[%clk 01:29:12]} 50. d6 {[%clk 01:31:08]} Ke8 {[%clk 01:29:12]}
51. a4 {[%clk 01:31:08]} Qb6 {[%clk 01:29:12]} 52. Bxb7 {[%clk 01:31:08]} Qxb7
{[%clk 01:29:12]} 53. Na3 {[%clk 01:31:08]} Qf3 {[%clk 01:29:12]} 0-1

[Event "Tournoi de MI de l'Echiquier du Pays de Bray"]
[Site "Gournay-en-Bray, France"]
[Date "????.??.??"]
[Round "9.5"]
[White "DUBESSAY, Bastien"]
[Black "MOUHAMAD, Joachim"]
[Result "1/2-1/2"]
[TimeControl "1h30/40 + 30 (30s/c)"]
[WhiteTitle "FM"]
[BlackTitle "FM"]
[WhiteFideId "650048"]
[BlackFideId "656410"]
[WhiteElo "2283"]
[BlackElo "2238"]

1. d4 {[%clk 01:30:56]} {[%emt 00:00:02]} d5 {[%clk 01:29:36]} {[%emt
00:01:24]} 2. c4 {[%clk 01:31:17]} {[%emt 00:00:10]} e6 {[%clk 01:29:55]}
{[%emt 00:00:11]} 3. Nc3 {[%clk 01:31:28]} {[%emt 00:00:19]} a6 {[%clk
01:30:07]} {[%emt 00:00:18]} 4. cxd5 {[%clk 01:31:46]} {[%emt 00:00:12]} exd5
{[%clk 01:30:29]} {[%emt 00:00:08]} 5. Nf3 {[%clk 01:32:05]} {[%emt 00:00:11]}
h6 {[%clk 01:30:50]} {[%emt 00:00:08]} 6. Bf4 {[%clk 01:25:33]} {[%emt
00:07:02]} Nf6 {[%clk 01:30:56]} {[%emt 00:00:24]} 7. e3 {[%clk 01:25:31]}
{[%emt 00:00:33]} Bd6 {[%clk 01:31:16]} {[%emt 00:00:09]} 8. Bd3 {[%clk
01:22:22]} {[%emt 00:03:39]} Bxf4 {[%clk 01:28:35]} {[%emt 00:03:11]} 9. exf4
{[%clk 01:22:46]} {[%emt 00:00:06]} O-O {[%clk 01:28:25]} {[%emt 00:00:40]} 10.
O-O {[%clk 01:22:51]} {[%emt 00:00:22]} Bg4 {[%clk 01:27:02]} {[%emt 00:01:56]}
11. h3 {[%clk 01:13:12]} {[%emt 00:10:09]} Bxf3 {[%clk 01:27:18]} {[%emt
00:00:14]} 12. Qxf3 {[%clk 01:13:37]} {[%emt 00:00:05]} Nc6 {[%clk 01:26:56]}
{[%emt 00:00:52]} 13. Ne2 {[%clk 01:13:57]} {[%emt 00:00:10]} Re8 {[%clk
01:26:14]} {[%emt 00:01:12]} 14. Rad1 {[%clk 01:09:01]} {[%emt 00:05:26]} Qd6
{[%clk 01:22:23]} {[%emt 00:04:21]} 15. a3 {[%clk 01:07:58]} {[%emt 00:01:34]}
Ne4 {[%clk 01:21:27]} {[%emt 00:01:26]} 16. Bb1 {[%clk 00:58:23]} {[%emt
00:10:05]} Re7 {[%clk 01:13:21]} {[%emt 00:08:36]} 17. Qd3 {[%clk 00:48:12]}
{[%emt 00:10:41]} Rae8 {[%clk 01:07:31]} {[%emt 00:06:19]} 18. g3 {[%clk
00:43:27]} {[%emt 00:05:16]} Na5 {[%clk 01:01:18]} {[%emt 00:06:44]} 19. Nc3
{[%clk 00:38:26]} {[%emt 00:05:30]} Nc4 {[%clk 00:36:46]} {[%emt 00:25:02]} 20.
Nxe4 {[%clk 00:37:36]} {[%emt 00:01:20]} Rxe4 {[%clk 00:34:23]} {[%emt
00:02:53]} 21. Qc3 {[%clk 00:37:57]} {[%emt 00:00:09]} R4e7 {[%clk 00:30:20]}
{[%emt 00:04:34]} 22. Bd3 {[%clk 00:36:40]} {[%emt 00:01:47]} Qd7 {[%clk
00:28:06]} {[%emt 00:02:44]} 23. Kg2 {[%clk 00:33:42]} {[%emt 00:03:27]} Nd6
{[%clk 00:28:25]} {[%emt 00:00:11]} 24. Qc2 {[%clk 00:20:21]} {[%emt 00:13:51]}
c6 {[%clk 00:27:44]} {[%emt 00:01:11]} 25. a4 {[%clk 00:18:53]} {[%emt
00:01:58]} Qe6 {[%clk 00:24:51]} {[%emt 00:03:23]} 26. Rfe1 {[%clk 00:15:03]}
{[%emt 00:04:20]} Qxe1 {[%clk 00:19:34]} {[%emt 00:05:47]} 27. Rxe1 {[%clk
00:15:28]} {[%emt 00:00:05]} Rxe1 {[%clk 00:19:59]} {[%emt 00:00:05]} 28. Qc5
{[%clk 00:15:52]} {[%emt 00:00:06]} Nc4 {[%clk 00:07:47]} {[%emt 00:12:41]} 29.
b3 {[%clk 00:07:44]} {[%emt 00:08:39]} Nb2 {[%clk 00:08:16]} 30. Bf1 {[%clk
00:08:04]} {[%emt 00:00:11]} Rb1 {[%clk 00:05:06]} {[%emt 00:03:39]} 31. Qc2
{[%clk 00:07:34]} {[%emt 00:00:30]} Ree1 {[%clk 00:05:27]} {[%emt 00:00:10]} 32.
Be2 {[%clk 00:08:06]} {[%emt 00:00:28]} g6 {[%clk 00:03:57]} {[%emt 00:02:00]}
33. h4 {[%clk 00:08:24]} {[%emt 00:00:12]} Nd1 {[%clk 00:01:49]} {[%emt
00:02:38]} 34. Qd2 {[%clk 00:08:38]} {[%emt 00:00:16]} Nc3 {[%clk 00:01:59]}
{[%emt 00:00:20]} 35. Bd3 {[%clk 00:06:41]} {[%emt 00:02:26]} Ne4 {[%clk
00:02:22]} {[%emt 00:00:07]} 36. Qa5 {[%clk 00:05:44]} {[%emt 00:01:27]} Rg1+
{[%clk 00:01:51]} {[%emt 00:01:01]} 37. Kh2 {[%clk 00:04:58]} {[%emt 00:01:17]}
Rh1+ {[%clk 00:02:20]} {[%emt 00:00:02]} 38. Kg2 {[%clk 00:05:23]} {[%emt
00:00:05]} Rhg1+ {[%clk 00:02:43]} {[%emt 00:00:06]} 39. Kh2 {[%clk 00:05:52]}
Rh1+ {[%clk 00:00:48]} {[%emt 00:02:26]} 40. Kg2 {[%clk 00:06:15]} {[%emt
00:00:06]} Rbg1+ {[%clk 00:00:56]} {[%emt 00:00:22]} 41. Kf3 {[%clk 00:06:38]}
{[%emt 00:00:08]} Nf6 {[%clk 00:27:00]} {[%emt 00:04:55]} 42. Bxg6 {[%clk
00:32:34]} {[%emt 00:05:35]} Re1 {[%clk 00:17:23]} {[%emt 00:10:08]} 43. Bf5
{[%clk 00:24:02]} {[%emt 00:09:02]} Kg7 {[%clk 00:16:45]} {[%emt 00:01:08]} 44.
Qc7 {[%clk 00:24:06]} {[%emt 00:00:26]} Rh2 {[%clk 00:15:05]} {[%emt 00:02:10]}
45. g4 {[%clk 00:18:55]} {[%emt 00:05:41]} Rxh4 {[%clk 00:09:37]} {[%emt
00:05:58]} 46. Qxb7 {[%clk 00:13:57]} {[%emt 00:05:29]} Ne4 {[%clk 00:06:19]}
{[%emt 00:03:48]} 47. Bxe4 {[%clk 00:13:39]} {[%emt 00:00:48]} dxe4+ {[%clk
00:05:21]} {[%emt 00:01:28]} 48. Kg3 {[%clk 00:14:02]} {[%emt 00:00:06]} Rhh1
{[%clk 00:04:08]} {[%emt 00:01:43]} 49. f5 {[%clk 00:14:17]} {[%emt 00:00:15]}
e3 {[%clk 00:02:48]} {[%emt 00:01:50]} 50. fxe3 {[%clk 00:13:58]} {[%emt
00:00:50]} Rxe3+ {[%clk 00:02:50]} {[%emt 00:00:28]} 51. Kf4 {[%clk 00:14:04]}
{[%emt 00:00:24]} Ree1 {[%clk 00:02:01]} {[%emt 00:01:19]} 52. Qxc6 {[%clk
00:12:01]} {[%emt 00:02:33]} Rhf1+ {[%clk 00:02:29]} {[%emt 00:00:02]} 53. Kg3
{[%clk 00:12:25]} {[%emt 00:00:05]} Rg1+ {[%clk 00:02:29]} {[%emt 00:00:30]} 54.
Kh2 {[%clk 00:10:23]} {[%emt 00:02:32]} Rxg4 {[%clk 00:02:24]} {[%emt
00:00:35]} 55. d5 {[%clk 00:10:24]} {[%emt 00:00:29]} Rd4 {[%clk 00:00:34]}
{[%emt 00:02:19]} 56. Qxa6 {[%clk 00:02:00]} {[%emt 00:08:55]} Rxd5 {[%clk
00:00:48]} {[%emt 00:00:16]} 57. f6+ {[%clk 00:02:13]} {[%emt 00:00:16]} Kg6
{[%clk 00:01:01]} {[%emt 00:00:18]} 58. Qa8 {[%clk 00:01:39]} {[%emt 00:01:04]}
Rg5 {[%clk 00:00:37]} {[%emt 00:00:54]} 59. Qg8+ {[%clk 00:01:24]} {[%emt
00:00:45]} Kxf6 {[%clk 00:01:05]} {[%emt 00:00:02]} 60. Qd8+ {[%clk 00:01:47]}
{[%emt 00:00:07]} Kg7 {[%emt 00:00:39]} 61. Qd4+ {[%clk 00:02:07]} Ree5 {[%clk
00:00:44]} {[%emt 00:00:53]} 62. a5 {[%clk 00:02:30]} {[%emt 00:00:07]} Rh5+
{[%clk 00:00:56]} {[%emt 00:00:17]} 63. Kg3 {[%clk 00:02:49]} {[%emt 00:00:11]}
Rhg5+ {[%clk 00:01:21]} {[%emt 00:00:06]} 64. Kh2 {[%clk 00:03:12]} {[%emt
00:00:07]} Kg6 {[%clk 00:01:02]} {[%emt 00:00:49]} 65. Qd6+ {[%clk 00:03:09]}
{[%emt 00:00:33]} f6 {[%clk 00:00:59]} {[%emt 00:00:33]} 66. Qd3+ {[%clk
00:02:59]} {[%emt 00:00:40]} Kg7 {[%clk 00:00:34]} {[%emt 00:00:55]} 67. a6
{[%clk 00:03:09]} {[%emt 00:00:22]} Rh5+ {[%clk 00:01:00]} {[%emt 00:00:03]} 68.
Kg3 {[%clk 00:03:19]} {[%emt 00:00:19]} Reg5+ {[%clk 00:01:10]} {[%emt
00:00:21]} 69. Kf2 {[%clk 00:03:28]} {[%emt 00:00:22]} Rh2+ {[%clk 00:01:15]}
{[%emt 00:00:24]} 70. Kf1 {[%clk 00:03:52]} {[%emt 00:00:06]} Rh1+ {[%clk
00:01:24]} {[%emt 00:00:21]} 71. Kf2 {[%clk 00:04:13]} {[%emt 00:00:09]} Rh2+
{[%clk 00:01:06]} {[%emt 00:00:49]} 72. Kf1 {[%clk 00:04:39]} {[%emt 00:00:03]}
Rh1+ {[%clk 00:00:46]} {[%emt 00:00:49]} 1/2-1/2